bitfinex-derivatives/quotes_ETHF0:USTF0_20250911
["timestamp","ask_amount","ask_price","bid_price","bid_amount"]
[1757563181109,0.4168,4406.1,4406.0,0.4137]
[1757563181303,0.1217,4406.5,4406.3,0.4137]
[1757563181304,0.5297,4406.4,4406.3,0.4137]
[1757563181509,0.736,4406.9,4406.8,0.2038]
[1757563182407,0.736,4406.9,4406.4,1.16775872]
[1757563182611,0.3192,4406.8,4406.4,1.47865872]
[1757563182819,0.8577,4406.5,4406.4,1.89235872]
[1757563186519,0.736,4406.5,4406.4,1.89235872]
[1757563187420,0.736,4406.5,4406.4,0.7246]
[1757563187421,0.8577,4406.5,4406.4,0.7246]
[1757563187718,0.8577,4406.5,4406.4,0.4137]
[1757563188619,0.8577,4406.5,4406.4,0.7246]
[1757563189721,0.5297,4406.5,4406.4,0.7246]
[1757563189920,0.3192,4406.5,4406.4,0.7246]
[1757563190324,0.5297,4406.5,4406.4,0.7246]
[1757563190711,0.8577,4406.5,4406.4,0.7246]
[1757563193018,0.8577,4406.5,4406.4,0.2038]
[1757563195526,0.4168,4406.3,4406.2,1.37155872]
[1757563195827,0.736,4406.3,4406.2,1.37155872]
[1757563196029,0.736,4406.3,4406.2,0.2038]
[1757563196227,0.2105,4405.7,4405.6,2.12635872]
[1757563196524,0.1217,4406.5,4405.6,2.12635872]
[1757563196729,0.736,4406.1,4406.0,1.89235872]
[1757563197027,0.736,4406.1,4406.0,0.7246]
[1757563200820,0.736,4406.1,4406.0,0.4137]
[1757563201016,0.736,4406.1,4406.0,0.7346]
[1757563201221,0.5297,4406.1,4406.0,0.7346]
[1757563204130,0.5297,4406.1,4406.0,1.90235872]
[1757563206133,0.7425,4406.1,4406.0,1.58145872]
[1757563206733,0.7249,4405.7,4405.6,0.4408]
[1757563206930,0.3079,4406.4,4405.6,0.6473]
[1757563207135,0.5121,4406.4,4406.3,0.4133]
[1757563207332,0.7249,4406.4,4406.3,0.7342]
[1757563208630,0.1217,4407.0,4406.3,0.7342]
[1757563208631,0.7249,4406.9,4406.8,0.2068]
[1757563210237,1.27586189,4406.9,4406.8,0.5277]
[1757563210438,0.7249,4406.9,4406.8,0.7342]
[1757563210933,0.1217,4407.5,4406.8,0.7342]
[1757563211137,0.1217,4407.5,4407.4,1.90195872]
[1757563211138,0.2042,4407.5,4407.4,1.90195872]
[1757563211339,0.5121,4407.5,4407.4,1.90195872]
[1757563211834,0.8454,4407.5,4406.7,0.3209]
[1757563212738,0.7249,4406.8,4406.7,0.2068]
[1757563213332,0.7249,4406.8,4406.7,0.5277]
[1757563215031,0.7249,4406.8,4406.7,0.7342]
[1757563216337,0.7249,4406.8,4406.7,1.72083987]
[1757563216636,0.7249,4406.8,4406.7,1.39993987]
[1757563217035,0.7249,4406.8,4406.7,1.72083987]
[1757563218037,0.7249,4406.8,4406.7,0.7342]
[1757563218339,0.7249,4406.8,4406.7,1.72083987]
[1757563218749,0.7249,4406.8,4406.7,1.19343987]
[1757563219841,0.7249,4406.8,4406.7,1.39993987]
[1757563220150,0.7249,4406.2,4406.1,1.95383987]
[1757563220442,0.5375,4407.0,4406.9,0.2068]
[1757563220835,0.8454,4407.0,4406.9,1.19343987]
[1757563221034,0.8454,4407.0,4406.9,1.72083987]
[1757563221234,0.8454,4407.0,4406.9,0.7342]
[1757563221536,0.8454,4407.0,4406.9,1.39993987]
[1757563222045,0.8454,4407.0,4406.9,1.19343987]
[1757563222232,0.8454,4407.0,4406.9,0.2068]
[1757563222941,0.7249,4406.3,4406.2,0.2068]
[1757563223739,0.7249,4406.3,4406.2,1.19343987]
[1757563223940,0.7249,4406.3,4406.2,0.2068]
[1757563224136,0.7249,4406.3,4405.6,33.1]
[1757563224341,0.7249,4405.7,4405.6,0.2068]
[1757563224539,0.4284,4406.5,4405.7,0.3209]
[1757563224744,0.7249,4406.9,4406.8,0.2068]
[1757563224942,0.7249,4406.9,4406.8,1.72083987]
[1757563225444,0.5121,4406.9,4406.8,1.72083987]
[1757563225745,0.6326,4407.5,4407.4,0.4133]
[1757563225943,0.7249,4408.0,4407.9,0.7342]
[1757563226141,0.1205,4409.0,4407.9,0.7342]
[1757563226142,0.8454,4408.5,4408.4,0.4133]
[1757563226348,0.7249,4408.5,4408.4,0.7342]
[1757563226846,0.7249,4408.5,4408.4,1.72083987]
[1757563227234,0.1205,4409.0,4408.4,1.72083987]
[1757563227444,0.7146,4408.9,4408.8,1.72063987]
[1757563227651,0.5125,4408.9,4408.8,1.72063987]
[1757563228049,0.7146,4408.9,4408.8,1.72063987]
[1757563228552,0.7146,4408.9,4408.8,0.734]
[1757563228746,0.7146,4408.9,4408.4,0.31]
[1757563228947,0.3104,4408.4,4408.3,0.2096]
[1757563229146,0.4042,4408.1,4408.0,33.1]
[1757563229348,0.7146,4408.1,4408.0,0.424]
[1757563229740,0.3104,4408.4,4408.3,0.424]
[1757563229940,0.1286,4409.0,4408.4,0.31]
[1757563229941,0.3104,4408.9,4408.4,0.31]
[1757563230141,0.1205,4410.0,4408.9,0.31]
[1757563230344,0.13460021,4410.5,4410.0,0.4299]
[1757563230549,0.53880021,4410.5,4409.6,0.31]
[1757563231048,0.7146,4410.4,4410.3,0.2096]
[1757563231549,0.7146,4410.4,4409.9,0.31]
[1757563232252,0.7146,4410.4,4409.5,0.1199]
[1757563232253,0.7146,4410.4,4409.6,0.31]
[1757563232950,0.5125,4410.4,4410.3,0.734]
[1757563233146,0.00600021,4410.5,4410.3,0.424]
[1757563233450,0.7146,4411.6,4411.5,0.734]
[1757563233650,32.8056,4413.0,4411.5,0.424]
[1757563233651,0.3104,4411.9,4411.5,0.424]
[1757563233838,0.7146,4411.6,4411.5,0.424]
[1757563234449,0.7146,4411.6,4411.5,0.2096]
[1757563234844,0.2021,4411.2,4411.1,0.734]
[1757563235046,0.7146,4411.2,4411.1,0.424]
[1757563235243,0.7146,4411.2,4410.5,0.1192]
[1757563235244,0.7146,4411.2,4410.6,0.31]
[1757563235447,0.7146,4411.2,4409.4,36.58664132]
[1757563235651,0.7146,4410.4,4410.3,0.424]
[1757563236157,0.7146,4410.4,4410.3,0.2096]
[1757563236652,0.7146,4410.4,4409.9,0.31]
[1757563236858,0.3104,4410.3,4409.5,0.31]
[1757563237054,0.7146,4409.6,4409.5,0.2096]
[1757563237260,0.439,4409.5,4409.4,33.1]
[1757563237759,0.8432,4409.5,4409.4,0.2096]
[1757563238568,0.8432,4409.5,4409.4,0.424]
[1757563238966,0.8432,4409.5,4408.8,0.2096]
[1757563238967,0.7146,4408.9,4408.8,0.2096]
[1757563239267,0.7146,4408.9,4408.8,0.424]
[1757563239670,0.7146,4408.9,4408.8,0.734]
[1757563240969,0.7146,4408.9,4408.8,0.424]
[1757563241366,0.2021,4408.2,4408.1,0.502]
[1757563241554,0.5446,4408.2,4408.1,0.734]
[1757563241962,0.0321,4408.2,4408.1,0.734]
[1757563242873,0.7467,4408.2,4408.1,0.734]
[1757563243363,0.0321,4408.2,4408.1,0.734]
[1757563244063,0.5446,4408.2,4408.1,0.734]
[1757563245263,0.7467,4408.2,4408.1,0.424]
[1757563246766,0.7467,4408.2,4408.1,0.2096]
[1757563246967,0.1286,4408.0,4407.9,0.2096]
[1757563247165,0.5328,4408.0,4407.9,0.2096]
[1757563247770,0.8432,4408.0,4407.9,0.2096]
[1757563248975,0.8432,4408.0,4407.5,0.31]
[1757563249566,0.8432,4408.0,4407.1,33.1]
[1757563249767,0.3104,4407.9,4407.1,33.1]
[1757563249962,0.1286,4408.0,4407.1,33.1]
[1757563250366,0.2021,4407.2,4407.1,33.1]
[1757563250560,0.2021,4407.2,4407.1,33.41]
[1757563250766,0.5125,4407.5,4407.4,0.734]
[1757563251465,0.7146,4407.5,4407.4,0.734]
[1757563252767,0.8432,4407.5,4407.4,0.2096]
[1757563253066,0.8432,4407.5,4407.0,0.31]
[1757563253574,0.7146,4407.4,4407.3,0.2096]
[1757563254777,0.7146,4407.4,4407.3,0.734]
[1757563255274,0.7146,4407.4,4407.3,0.424]
[1757563255670,0.7146,4407.4,4407.3,0.734]
[1757563256577,0.5125,4407.9,4407.8,0.734]
[1757563256777,0.7146,4407.9,4407.8,0.424]
[1757563257878,0.3104,4407.9,4407.8,0.424]
[1757563258084,0.3104,4407.9,4407.8,0.7252]
[1757563258467,0.8317,4408.5,4408.4,0.4157]
[1757563258667,1.0585,4408.5,4408.4,0.7169]
[1757563258884,1.0585,4408.5,4408.4,0.4157]
[1757563259582,1.0585,4408.5,4408.4,0.2085]
[1757563259784,1.0585,4408.5,4408.0,0.3012]
[1757563259970,1.0585,4408.5,4407.5,0.1191]
[1757563260175,1.0585,4408.5,4408.4,0.7169]
[1757563260977,1.0585,4408.5,4408.4,0.2085]
[1757563261884,0.8303,4408.0,4407.9,0.7169]
[1757563262988,0.7031,4408.0,4407.9,0.7169]
[1757563264782,0.8303,4408.0,4407.9,0.4157]
[1757563265285,0.8303,4408.0,4407.9,0.7169]
[1757563265786,0.8303,4408.0,4407.9,0.4157]
[1757563266181,0.8303,4408.0,4407.9,0.7169]
[1757563266384,0.7031,4408.0,4407.9,0.7169]
[1757563267285,0.1272,4407.5,4407.4,0.2085]
[1757563267490,0.5243,4407.5,4407.4,0.4157]
[1757563267682,0.8303,4407.5,4407.4,0.4157]
[1757563267882,0.5243,4407.5,4406.9,0.5342]
[1757563268184,0.503,4407.0,4406.9,0.9499]
[1757563268593,0.8303,4407.5,4407.4,0.4157]
[1757563268788,0.8303,4407.5,4407.4,0.7169]
[1757563269392,0.503,4407.5,4407.4,0.7169]
[1757563269588,0.3554,4408.5,4407.9,0.2072]
[1757563269789,0.503,4408.0,4407.9,0.7169]
[1757563270591,0.7031,4408.0,4407.9,0.7169]
[1757563271291,0.8303,4408.0,4407.9,0.7169]
[1757563271491,0.8303,4408.0,4407.9,0.4157]
[1757563271685,0.8303,4408.0,4407.9,0.2085]
[1757563271884,0.8303,4408.0,4407.6,0.3012]
[1757563272085,0.8303,4408.0,4407.1,0.3012]
[1757563273191,0.7031,4407.2,4407.1,0.2085]
[1757563273391,0.1272,4407.5,4407.1,0.7169]
[1757563273579,0.306,4407.4,4407.2,0.3012]
[1757563273780,0.503,4407.4,4407.3,0.4157]
[1757563273986,0.7031,4407.4,4407.3,0.7169]
[1757563274188,0.7031,4407.4,4406.9,0.233]
[1757563274379,0.1272,4407.5,4406.9,0.233]
[1757563274380,0.5243,4407.0,4406.9,0.4415]
[1757563274584,0.8303,4407.0,4406.9,0.4415]
[1757563274782,0.8303,4407.0,4406.9,0.6487]
[1757563275090,0.7031,4407.0,4406.9,0.7169]
[1757563275496,0.8303,4407.0,4406.9,0.2085]
[1757563275793,0.8303,4406.5,4406.4,0.7169]
[1757563275986,0.306,4406.8,4406.4,0.7169]
[1757563276293,0.1272,4407.0,4406.3,1.1075]
[1757563276294,0.7031,4406.4,4406.3,1.1075]
[1757563276490,0.7031,4406.4,4406.3,1.6159]
[1757563276690,0.7031,4406.4,4406.3,0.899]
[1757563278396,0.7031,4406.4,4406.3,1.3147]
[1757563278594,0.7031,4406.4,4406.3,1.6159]
[1757563282097,0.93,4406.4,4406.3,1.6159]
[1757563282297,0.93,4406.4,4406.3,1.3147]
[1757563283990,0.93,4406.4,4406.3,0.899]
[1757563285696,4.93,4406.4,4406.3,0.899]
[1757563286897,5.15695,4406.4,4406.3,0.899]
[1757563287700,4.93,4406.4,4406.3,0.899]
[1757563288103,5.163,4406.4,4406.3,0.899]
[1757563288600,0.93,4406.4,4406.3,0.899]
[1757563288790,0.93,4406.4,4406.3,1.1082]
[1757563289196,0.93,4406.4,4406.3,1.6407]
[1757563289792,0.7254,4406.4,4406.3,1.6407]
[1757563289998,0.94,4406.4,4406.3,1.6407]
[1757563290308,0.94,4406.4,4406.3,0.899]
[1757563290900,0.94,4406.4,4406.3,1.1082]
[1757563291398,0.94,4406.4,4406.3,1.6407]
[1757563291596,0.2269,4406.4,4406.3,1.6407]
[1757563291797,0.7254,4406.4,4406.3,1.6407]
[1757563291997,0.94,4406.4,4406.3,1.6407]
[1757563294313,0.7254,4406.4,4406.3,1.6407]
[1757563296097,0.94,4406.4,4406.3,1.3224]
[1757563296305,0.94,4406.4,4406.3,1.6407]
[1757563296501,0.94,4406.4,4406.3,1.3224]
[1757563297100,0.94,4406.4,4406.3,1.6407]
[1757563297304,0.94,4406.4,4406.3,1.1082]
[1757563297501,0.94,4406.4,4406.3,1.6407]
[1757563298004,0.94,4406.4,4406.3,1.3224]
[1757563298203,0.94,4406.4,4406.3,1.6407]
[1757563298404,0.2269,4406.4,4406.3,1.6407]
[1757563299106,0.7254,4406.4,4406.3,1.6407]
[1757563299509,0.94,4406.4,4406.3,1.6407]
[1757563299695,0.94,4406.4,4406.3,0.899]
[1757563300509,0.94,4406.4,4405.0,0.3521]
[1757563300510,5.16695,4406.4,4405.3,0.3183]
[1757563300811,0.1289,4406.5,4405.3,0.3183]
[1757563300812,0.4985,4405.4,4405.3,0.7417]
[1757563301200,0.1289,4406.0,4405.3,0.4234]
[1757563301405,0.2929,4405.9,4405.4,0.3183]
[1757563301605,0.7131,4405.9,4405.8,0.1965]
[1757563301818,0.7131,4405.9,4405.8,0.4057]
[1757563302708,0.2056,4404.7,4404.6,0.4613]
[1757563302911,0.7131,4404.7,4404.6,0.2092]
[1757563303412,0.7131,4404.7,4404.6,0.4234]
[1757563306013,0.7131,4404.7,4404.6,0.2092]
[1757563306413,0.7131,4404.7,4404.6,0.4234]
[1757563307518,0.7131,4404.7,4404.6,0.2092]
[1757563308011,0.2056,4404.1,4404.0,0.4234]
[1757563308315,0.2056,4404.1,4404.0,0.6755]
[1757563308316,0.2929,4404.1,4404.0,0.6755]
[1757563309211,0.4985,4404.1,4404.0,0.6755]
[1757563309410,0.1289,4404.5,4404.0,0.6755]
[1757563309716,0.3345,4404.5,4404.4,0.4234]
[1757563309916,0.5491,4404.5,4404.4,0.4234]
[1757563310117,0.842,4404.5,4404.4,0.4234]
[1757563311716,0.6274,4404.0,4403.9,0.4234]
[1757563311920,0.842,4404.0,4403.9,0.4234]
[1757563312311,0.842,4404.0,4403.9,0.2092]
[1757563312924,0.842,4404.0,4403.9,0.4234]
[1757563313913,0.5491,4404.0,4402.9,33.1]
[1757563314115,0.4985,4403.2,4403.1,0.2092]
[1757563314416,0.4985,4403.2,4402.9,33.1]
[1757563314417,0.2929,4403.5,4403.4,0.4234]
[1757563314618,0.2929,4403.5,4403.4,0.6755]
[1757563314912,0.6274,4403.5,4403.4,0.6755]
[1757563315322,0.6274,4403.5,4403.4,0.4234]
[1757563316012,0.6274,4403.5,4403.4,0.6755]
[1757563316518,0.6274,4403.5,4403.4,0.4234]
[1757563316911,0.842,4403.5,4403.4,0.4234]
[1757563318118,0.842,4403.5,4402.8,0.17261546]
[1757563318319,0.842,4403.5,4402.9,0.22711]
[1757563318519,0.842,4403.5,4403.0,33.1]
[1757563318708,0.5101,4403.4,4403.0,33.1]
[1757563318910,0.5068,4402.9,4402.8,0.83431546]
[1757563319213,0.7064,4402.9,4402.8,0.58201546]
[1757563320315,0.1289,4403.5,4402.8,0.58201546]
[1757563320615,0.7064,4403.4,4403.3,0.4094]
[1757563321008,0.7064,4403.4,4402.9,0.2523]
[1757563321319,0.7064,4402.9,4402.8,0.17261546]
[1757563321715,0.7064,4402.9,4402.8,0.37681546]
[1757563322215,0.7064,4402.9,4402.8,0.17261546]
[1757563322417,0.7064,4402.9,4402.8,0.37681546]
[1757563323124,0.7064,4402.9,4402.8,0.17261546]
[1757563323417,0.1289,4403.5,4402.8,0.83431546]
[1757563323718,0.5248,4403.5,4403.4,0.6617]
[1757563323913,0.5248,4403.5,4403.4,0.4094]
[1757563324119,0.8353,4403.5,4403.4,0.4094]
[1757563325212,0.8353,4403.5,4403.4,0.2042]
[1757563325412,0.8353,4403.5,4402.8,0.17261546]
[1757563325813,0.8353,4403.5,4403.4,0.4094]
[1757563326121,0.6357,4403.5,4403.4,0.6617]
[1757563326613,0.8353,4403.5,4403.4,0.4094]
[1757563327418,0.8353,4403.5,4403.4,0.2042]
[1757563328019,0.8353,4403.5,4402.8,0.17261546]
[1757563328217,0.3278,4403.0,4402.9,0.4094]
[1757563328422,0.8346,4403.0,4402.9,0.4094]
[1757563330025,0.8346,4403.0,4402.8,0.17261546]
[1757563330626,0.8346,4403.0,4402.9,0.2042]
[1757563332524,0.8346,4403.0,4402.8,0.17261546]
[1757563334524,0.8346,4403.0,4402.9,0.31088478]
[1757563338029,0.8346,4403.0,4402.9,0.72028478]
[1757563338229,0.8346,4403.0,4402.9,0.97258478]
[1757563338732,0.8346,4403.0,4402.9,0.72028478]
[1757563338942,0.8346,4403.0,4402.9,0.31088478]
[1757563339232,0.8346,4403.0,4402.9,0.51508478]
[1757563339924,0.8346,4403.0,4402.9,0.31088478]
[1757563340935,1.82306681,4403.0,4402.9,0.31088478]
[1757563342232,1.82306681,4403.0,4402.9,0.34192266]
[1757563342531,0.3959,4401.8,4401.7,2.49151439]
[1757563342735,0.6811759,4401.8,4401.7,0.7059]
[1757563342928,0.6811759,4401.8,4401.7,33.8059]
[1757563343829,0.6811759,4401.8,4401.1,1.99081439]
[1757563343830,0.7064,4401.2,4401.1,1.99081439]
[1757563344033,0.7064,4401.2,4401.1,0.7059]
[1757563344530,0.3105,4401.1,4400.4,0.2965]
[1757563344736,0.7064,4400.5,4400.4,0.2965]
[1757563345037,0.7064,4400.5,4400.4,0.5007]
[1757563345234,0.7064,4401.4,4401.3,0.5007]
[1757563345436,0.7064,4401.4,4401.3,0.7059]
[1757563345635,0.7064,4401.4,4401.3,0.5007]
[1757563346138,0.3105,4401.3,4401.1,0.2965]
[1757563346334,0.3105,4401.1,4400.2,0.2965]
[1757563346541,0.7064,4400.3,4400.2,0.7059]
[1757563346728,0.3105,4400.6,4400.2,1.69436681]
[1757563346932,0.1963,4400.6,4400.5,0.8313]
[1757563347944,0.6933,4400.6,4400.5,0.8313]
[1757563348146,0.6933,4400.6,4400.1,33.1]
[1757563348334,1.11666681,4401.0,4400.2,0.5309]
[1757563348335,0.4111,4400.3,4400.2,0.5309]
[1757563348529,0.4111,4400.3,4400.1,33.1]
[1757563348530,0.2974,4400.2,4400.1,33.1]
[1757563348730,0.2974,4400.2,4400.1,33.4167]
[1757563350340,0.2272,4400.3,4400.2,0.424]
[1757563350541,0.2272,4400.3,4400.2,0.7407]
[1757563350936,0.2974,4401.2,4400.3,0.3167]
[1757563351136,0.7085,4401.2,4401.1,0.2142]
[1757563352242,0.7085,4401.2,4401.1,0.7407]
[1757563352445,0.2115,4401.2,4401.1,0.7407]
[1757563352642,0.5244,4401.6,4401.1,0.424]
[1757563352837,0.9355,4401.6,4401.5,0.5479]
[1757563353041,0.4111,4401.6,4401.5,0.8646]
[1757563355042,0.7085,4401.6,4401.5,0.7407]
[1757563355345,0.7085,4401.6,4401.5,0.5309]
[1757563355546,0.4111,4401.4,4401.3,33.1]
[1757563355750,0.7085,4401.4,4401.3,33.1]
[1757563356039,0.7085,4401.4,4400.7,0.3167]
[1757563356647,0.2974,4401.3,4400.8,33.1]
[1757563356839,0.7085,4400.9,4400.8,33.4167]
[1757563358248,0.7085,4400.9,4400.8,33.1]
[1757563358445,0.7085,4400.9,4400.4,0.3167]
[1757563358640,1.10676681,4401.0,4400.4,0.3167]
[1757563358641,0.7085,4400.5,4400.4,0.5309]
[1757563359942,0.2115,4400.5,4400.4,0.7407]
[1757563360148,0.5089,4400.8,4400.7,0.7407]
[1757563360344,0.7085,4400.8,4400.7,0.7407]
[1757563361456,0.7085,4400.8,4400.7,0.5309]
[1757563361656,0.7085,4400.8,4400.7,0.7407]
[1757563362745,0.4111,4400.2,4400.1,33.1]
[1757563363054,0.7085,4400.2,4400.1,0.5309]
[1757563363249,0.7085,4400.2,4400.1,0.7407]
[1757563364444,0.4111,4400.2,4400.1,0.7407]
[1757563365451,0.2974,4400.1,4399.6,0.5497]
[1757563365953,0.2115,4399.7,4399.6,0.9737]
[1757563367153,0.7085,4399.7,4399.6,0.7407]
[1757563368256,0.4111,4399.7,4399.6,0.7407]
[1757563368856,0.7085,4399.7,4399.6,0.7407]
[1757563369368,0.7085,4399.7,4399.2,0.3167]
[1757563369553,0.1996,4399.6,4399.5,0.8646]
[1757563369754,0.2115,4399.7,4399.6,0.2098]
[1757563370057,0.2115,4399.7,4399.6,0.7407]
[1757563371853,1.69696681,4399.7,4399.5,0.1239]
[1757563372059,0.4111,4399.3,4399.2,0.2142]
[1757563372352,0.7085,4399.3,4399.2,0.5309]
[1757563372749,0.7085,4399.3,4399.2,0.7407]
[1757563372950,0.4111,4399.3,4399.2,0.7407]
[1757563373549,0.7085,4399.3,4399.2,0.7407]
[1757563374161,0.7085,4399.3,4399.2,0.5309]
[1757563375052,0.7085,4399.3,4399.1,33.1]
[1757563375053,0.2974,4399.2,4399.1,33.4167]
[1757563375564,0.7085,4399.2,4399.1,0.5309]
[1757563376252,0.736,4400.0,4399.9,0.2142]
[1757563376456,1.0868,4400.0,4399.9,0.5309]
[1757563376851,0.9778,4400.0,4399.6,0.3167]
[1757563377057,1.39836681,4399.8,4399.7,0.2142]
[1757563377258,1.39836681,4399.8,4399.7,0.5331]
[1757563377658,1.71496681,4399.8,4399.7,0.5331]
[1757563377856,0.1995,4399.1,4399.0,0.4428]
[1757563378060,0.4099,4399.1,4399.0,0.854]
[1757563378361,1.53806681,4399.6,4399.1,0.3189]
[1757563378562,0.1995,4399.2,4399.1,0.7301]
[1757563379759,0.222,4399.7,4399.1,0.4112]
[1757563379960,0.1995,4399.6,4399.5,0.1174]
[1757563380160,0.1995,4399.6,4399.5,0.5286]
[1757563380361,0.233,4399.8,4399.5,0.5286]
[1757563380555,0.1995,4399.7,4399.6,0.7301]
[1757563382059,0.7265,4399.7,4399.6,0.5349]
[1757563382259,0.7265,4399.7,4399.1,0.3189]
[1757563382466,0.7265,4399.2,4399.1,0.5349]
[1757563383267,0.7265,4399.2,4399.1,0.216]
[1757563383463,0.7265,4399.2,4399.1,0.7301]
[1757563385665,0.7265,4399.2,4398.6,0.3189]
[1757563385872,0.7265,4399.2,4399.1,0.5349]
[1757563386468,0.7265,4399.2,4398.6,0.3189]
[1757563386664,0.7265,4398.7,4397.9,0.3189]
[1757563386966,0.4099,4398.0,4397.9,0.7301]
[1757563387159,0.4325,4398.5,4398.4,0.7301]
[1757563387362,0.4099,4398.5,4398.4,0.7301]
[1757563387569,0.7265,4398.5,4398.4,0.7301]
[1757563387966,1.71496681,4398.5,4398.4,0.7301]
[1757563388167,1.71496681,4398.5,4398.4,0.5349]
[1757563388469,1.51896681,4398.5,4397.7,0.3189]
[1757563388670,0.3166,4398.4,4397.7,0.3189]
[1757563388872,0.7265,4398.4,4398.3,0.5349]
[1757563390070,0.7265,4398.4,4398.3,0.216]
[1757563390978,0.7265,4398.4,4398.3,0.5349]
[1757563391274,1.71496681,4398.4,4398.3,0.5349]
[1757563391470,1.39836681,4398.4,4398.0,0.4363]
[1757563391670,1.71496681,4398.1,4398.0,0.3189]
[1757563392082,1.71496681,4398.1,4398.0,0.5349]
[1757563392281,1.71496681,4398.1,4398.0,0.3189]
[1757563392679,1.71496681,4398.1,4397.6,33.1]
[1757563392680,0.3166,4397.7,4397.6,33.1]
[1757563392986,0.1206,4398.0,4397.3,0.7301]
[1757563392987,0.7265,4397.4,4397.3,0.7301]
[1757563393991,0.4325,4398.0,4397.9,0.7301]
[1757563394486,0.1995,4398.0,4397.9,0.7301]
[1757563395383,0.7265,4398.0,4397.9,0.7301]
[1757563395686,0.4099,4398.0,4397.9,0.7301]
[1757563395880,0.1995,4398.0,4397.9,0.7301]
[1757563397091,0.7265,4398.0,4397.9,0.7301]
[1757563398086,0.7265,4398.0,4397.5,0.1174]
[1757563398087,0.1995,4398.2,4398.1,0.3189]
[1757563398288,0.1995,4398.2,4398.1,0.7301]
[1757563398478,0.4099,4398.2,4398.1,0.7301]
[1757563398675,0.7265,4398.2,4397.5,0.1174]
[1757563398876,1.71496681,4397.8,4397.7,0.7301]
[1757563399385,0.7265,4397.8,4397.7,0.7301]
[1757563399990,0.233,4398.2,4398.0,0.1174]
[1757563400187,0.1995,4398.2,4398.1,0.7301]
[1757563400687,0.1206,4399.0,4398.0,0.1174]
[1757563400688,0.233,4398.7,4398.2,0.3189]
[1757563400880,0.6429,4398.7,4398.6,0.7301]
[1757563401082,0.9595,4398.7,4398.6,0.7301]
[1757563401284,0.6429,4398.7,4398.6,0.7301]
[1757563401784,0.3166,4399.0,4398.6,0.7301]
[1757563401785,0.233,4398.9,4398.7,0.3189]
[1757563401991,0.4325,4398.9,4398.8,0.7301]
[1757563402291,0.9595,4398.9,4398.8,0.7301]
[1757563402890,2.13265377,4398.9,4398.8,0.5349]
[1757563403092,2.13265377,4398.9,4398.5,0.3189]
[1757563403486,0.2273,4398.8,4398.5,0.3189]
[1757563403687,0.7265,4398.6,4398.5,0.7301]
[1757563403999,0.4603,4398.8,4398.6,0.3189]
[1757563404293,0.6598,4398.8,4398.7,0.7301]
[1757563404787,0.2273,4398.8,4398.7,0.7301]
[1757563405383,0.2273,4398.8,4398.7,4.95744]
[1757563405783,0.1206,4400.0,4398.8,0.3189]
[1757563405784,0.3166,4400.0,4398.8,0.3189]
[1757563406096,0.7265,4400.0,4399.9,0.216]
[1757563406395,0.9595,4400.0,4399.9,0.5349]
[1757563406792,1.0801,4400.0,4399.6,0.3189]
[1757563406990,1.0801,4400.0,4399.5,0.1174]
[1757563407185,1.0801,4400.0,4399.6,0.2993]
[1757563407595,1.17315377,4399.9,4399.6,0.2993]
[1757563407801,0.7253,4399.7,4399.6,0.7164]
[1757563409596,0.9583,4399.7,4399.6,0.7164]
[1757563410616,0.5357,4400.4,4399.7,0.2993]
[1757563410801,0.5357,4400.4,4400.2,0.5019]
[1757563410802,1.30526431,4400.3,4400.2,0.5019]
[1757563411000,1.53826431,4400.3,4400.2,0.7164]
[1757563411299,0.9583,4400.3,4400.2,0.7164]
[1757563412294,0.7253,4400.3,4400.2,0.7164]
[1757563412504,0.9583,4400.3,4400.2,0.7164]
[1757563413391,0.3085,4400.6,4400.3,0.2993]
[1757563413600,0.2032,4400.6,4400.5,0.8396]
[1757563413904,0.8733,4400.6,4400.5,0.7164]
[1757563414901,0.8733,4400.6,4400.5,0.8396]
[1757563415104,0.6498,4400.6,4400.5,0.8396]
[1757563415892,0.9583,4400.6,4400.5,0.8396]
[1757563416299,0.9583,4400.6,4400.5,0.5019]
[1757563416511,0.9583,4400.6,4400.5,0.2993]
[1757563416696,0.7253,4400.2,4400.1,0.5019]
[1757563417494,0.7253,4400.2,4400.1,0.7164]
[1757563418204,0.9583,4400.2,4400.1,0.5019]
[1757563418399,0.9583,4400.2,4399.8,0.2993]
[1757563418603,0.9583,4400.2,4399.6,0.2993]
[1757563419507,0.6498,4400.2,4400.1,0.7164]
[1757563420002,1.17315377,4400.6,4400.5,0.1232]
[1757563420209,2.13145377,4400.6,4400.5,0.8396]
[1757563420410,2.13145377,4400.6,4400.5,0.7164]
[1757563420708,0.2272,4400.9,4400.8,0.7164]
[1757563420911,0.3085,4401.5,4400.8,0.7164]
[1757563421203,0.3085,4401.5,4400.5,0.1232]
[1757563421204,0.6498,4401.4,4401.3,0.2026]
[1757563421407,1.89845377,4401.4,4401.3,0.5019]
[1757563421609,2.13145377,4401.4,4401.3,0.5019]
[1757563421905,0.2271,4401.7,4401.3,0.7164]
[1757563422095,0.2271,4401.7,4401.6,0.7164]
[1757563422797,0.1187,4403.0,4401.6,5.88955377]
[1757563423006,0.3085,4402.9,4402.6,0.7164]
[1757563423300,0.6498,4403.3,4403.2,0.4171]
[1757563423602,0.1187,4404.0,4403.2,0.7164]
[1757563423803,0.3085,4404.4,4403.8,0.4171]